fUST/lending_fUST_20240421
["ID","MTS","AMOUNT","RATE_DAILY","PERIOD"]
[323120369,1713682259350,-2003.26,0.00023561,2]
[323120370,1713682259359,-500.0,0.00023561,2]
[323120371,1713682259368,-1858.5,0.00023561,2]
[323120372,1713682259377,-859.85,0.00023561,2]
[323120373,1713682259386,-500.0,0.00023561,2]
[323120374,1713682259397,-1129.46,0.00023561,2]
[323120375,1713682259407,-2335.39,0.00023561,2]
[323120376,1713682259418,-500.0,0.00023561,2]
[323120377,1713682259428,-500.0,0.00023561,2]
[323120378,1713682259439,-303.10122936,0.00023561,2]
[323120379,1713682259449,-808.13,0.00023561,2]
[323120380,1713682259459,-500.0,0.00023561,2]
[323120381,1713682259468,-847.92,0.00023561,2]
[323120382,1713682259477,-500.0,0.00023561,2]
[323120383,1713682259486,-2528.35,0.00023561,2]
[323120384,1713682259497,-1137.12,0.00023561,2]
[323120385,1713682259507,-500.0,0.00023561,2]
[323120386,1713682259516,-500.0,0.00023561,2]
[323120387,1713682259525,-500.0,0.00023561,2]
[323120388,1713682259534,-1173.14,0.00023561,2]
[323120389,1713682259545,-1992.64,0.00023561,2]
[323120390,1713682259556,-500.0,0.00023561,2]
[323120391,1713682259566,-5785.47,0.00023561,2]
[323120392,1713682259575,-500.0,0.00023561,2]
[323120393,1713682259585,-1195.65,0.00023561,2]
[323120394,1713682259595,-500.0,0.00023561,2]
[323120395,1713682259604,-502.56862016,0.00023561,2]
[323120396,1713682259613,-1082.6,0.00023561,2]
[323120397,1713682259623,-500.0,0.00023561,2]
[323120398,1713682259633,-865.36,0.00023561,2]
[323120399,1713682259642,-585.82,0.00023561,2]
[323120400,1713682259652,-513.23,0.00023561,2]
[323120401,1713682259661,-920.24,0.00023561,2]
[323120402,1713682259672,-500.0,0.00023561,2]
[323120403,1713682259683,-500.0,0.00023561,2]
[323120404,1713682259692,-621.25041555,0.00023561,2]
[323120405,1713682259702,-500.0,0.00023561,2]
[323120406,1713682259712,-626.07,0.00023561,2]
[323120407,1713682259722,-404.19745103,0.00023561,2]
[323120408,1713682259731,-829.79,0.00023561,2]
[323120409,1713682259743,-500.0,0.00023561,2]
[323120410,1713682259753,-685.85,0.00023561,2]
[323120411,1713682259762,-3764.97,0.00023561,2]
[323120412,1713682259771,-924.74,0.00023561,2]
[323120413,1713682259780,-500.0,0.00023561,2]
[323120414,1713682259791,-500.0,0.00023561,2]
[323120415,1713682259801,-500.0,0.00023561,2]
[323120416,1713682259810,-3553.7,0.00023561,2]
[323120417,1713682259820,-500.0,0.00023561,2]
[323120418,1713682259830,-500.0,0.00023561,2]
[323120419,1713682259839,-3076.51,0.00023561,2]
[323120420,1713682259848,-2283.51,0.00023561,2]
[323120421,1713682259858,-500.0,0.00023561,2]
[323120422,1713682259868,-545.24,0.00023561,2]
[323120423,1713682259877,-500.0,0.00023561,2]
[323120424,1713682259887,-500.0,0.00023561,2]
[323120425,1713682259896,-605.36,0.00023561,2]
[323120426,1713682259906,-500.0,0.00023561,2]
[323120427,1713682259915,-500.0,0.00023561,2]
[323120428,1713682259925,-500.0,0.00023561,2]
[323120429,1713682259935,-500.0,0.00023561,2]
[323120430,1713682259945,-483.15530637,0.00023561,2]
[323120431,1713682259956,-2074.47,0.00023561,2]
[323120432,1713682259966,-55793.57,0.00023561,2]
[323120433,1713682259975,-500.0,0.00023561,2]
[323120434,1713682259985,-571.08,0.00023561,2]
[323120435,1713682259995,-641.6,0.00023561,2]
[323120436,1713682260006,-500.0,0.00023561,2]
[323120437,1713682260016,-500.0,0.00023561,2]
[323120438,1713682260026,-2161.83,0.00023561,2]
[323120439,1713682260036,-500.0,0.00023561,2]
[323120440,1713682260046,-500.0,0.00023561,2]
[323120441,1713682260055,-542.23,0.00023561,2]
[323120442,1713682260065,-3661.29,0.00023561,2]
[323120443,1713682260075,-178.51421196,0.00023561,2]
[323120444,1713682260084,-500.0,0.00023561,2]
[323120445,1713682260095,-650.2,0.00023561,2]
[323120446,1713682260105,-4628.55,0.00023561,2]
[323120447,1713682260115,-500.0,0.00023561,2]
[323120448,1713682260125,-500.0,0.00023561,2]
[323120449,1713682260134,-1011.96,0.00023561,2]
[323120450,1713682260144,-8470.02,0.00023561,2]
[323120451,1713682260154,-151.0,0.00023561,2]
[323120452,1713682260163,-500.0,0.00023561,2]
[323120453,1713682260173,-6566.31,0.00023561,2]
[323120454,1713682260182,-500.0,0.00023561,2]
[323120455,1713682260191,-1558.88,0.00023561,2]
[323120456,1713682260201,-1397.36,0.00023561,2]
[323120457,1713682260211,-500.0,0.00023561,2]
[323120458,1713682260221,-500.0,0.00023561,2]
[323120459,1713682260307,-500.0,0.00023561,2]
[323120460,1713682260325,-554.09,0.00023561,2]
[323120461,1713682260335,-1320.33059849,0.00023561,2]
[323120462,1713682260358,-618.37940151,0.00023561,2]
[323120463,1713682260367,-500.0,0.00023561,2]
[323120464,1713682260377,-500.0,0.00023835,2]
[323120465,1713682260386,-500.0,0.00023835,2]
[323120466,1713682260395,-500.0,0.00023835,2]
[323120467,1713682260405,-500.0,0.00023835,2]
[323120468,1713682260415,-500.0,0.00023835,2]
[323120469,1713682260425,-895.86,0.00023835,2]
[323120470,1713682260434,-500.0,0.00023835,2]
[323120471,1713682260443,-500.0,0.00023835,2]
[323120472,1713682260453,-500.0,0.00023835,2]
[323120473,1713682260462,-539.54,0.00023835,2]
[323120474,1713682260471,-500.0,0.00023835,2]
[323120475,1713682260480,-500.0,0.00023835,2]
[323120476,1713682260490,-500.0,0.00023835,2]
[323120477,1713682260499,-2897.85,0.00023835,2]
[323120478,1713682260508,-500.0,0.00023835,2]
[323120479,1713682260517,-668.25,0.00023835,2]
[323120480,1713682260527,-500.0,0.00023835,2]
[323120481,1713682260537,-926.17,0.00023835,2]
[323120482,1713682260546,-500.0,0.00023835,2]
[323120483,1713682260556,-600.82,0.00023835,2]
[323120484,1713682260565,-1032.11,0.00023835,2]
[323120485,1713682260574,-500.0,0.00023835,2]
[323120486,1713682260583,-210.24346026,0.00023835,2]
[323120487,1713682260593,-1200.37,0.00023835,2]
[323120488,1713682260603,-751.54,0.00023835,2]
[323120489,1713682260612,-500.0,0.00023835,2]
[323120490,1713682260622,-500.0,0.00023835,2]
[323120491,1713682260631,-823.34,0.00023835,2]
[323120492,1713682260642,-582.56,0.00023835,2]
[323120493,1713682260653,-500.0,0.00023835,2]
[323120494,1713682260663,-500.0,0.00023835,2]
[323120495,1713682260673,-500.0,0.00023835,2]
[323120496,1713682260682,-1463.78,0.00023835,2]
[323120497,1713682260692,-980.47,0.00023835,2]
[323120498,1713682260702,-1041.63,0.00023835,2]
[323120499,1713682260711,-1235.19,0.00023835,2]
[323120500,1713682260721,-550.81,0.00023835,2]
[323120501,1713682260730,-1709.09,0.00023835,2]
[323120502,1713682260739,-478.6155208,0.00023835,2]
[323120503,1713682260749,-2893.04,0.00023835,2]
[323120504,1713682260758,-500.0,0.00023835,2]
[323120505,1713682260767,-2003.26,0.00023835,2]
[323120506,1713682260776,-500.0,0.00023835,2]
[323120507,1713682260786,-1858.5,0.00023835,2]
[323120508,1713682260796,-859.85,0.00023835,2]
[323120509,1713682260806,-500.0,0.00023835,2]
[323120510,1713682260815,-1129.46,0.00023835,2]
[323120511,1713682260825,-2335.39,0.00023835,2]
[323120512,1713682260834,-500.0,0.00023835,2]
[323120513,1713682260844,-500.0,0.00023835,2]
[323120514,1713682260854,-808.13,0.00023835,2]
[323120515,1713682260866,-203.21117808,0.00023835,2]
[323120516,1713682260875,-847.92,0.00023835,2]
[323120517,1713682260884,-500.0,0.00023835,2]
[323120518,1713682260893,-2528.35,0.00023835,2]
[323120519,1713682260903,-1137.12,0.00023835,2]
[323120520,1713682260912,-500.0,0.00023835,2]
[323120521,1713682260922,-500.0,0.00023835,2]
[323120522,1713682260931,-500.0,0.00023835,2]
[323120523,1713682260940,-1173.14,0.00023835,2]
[323120524,1713682260950,-1992.64,0.00023835,2]
[323120525,1713682260959,-500.0,0.00023835,2]
[323120526,1713682260969,-5785.47,0.00023835,2]
[323120527,1713682260978,-500.0,0.00023835,2]
[323120528,1713682260987,-1195.65,0.00023835,2]
[323120529,1713682260998,-500.0,0.00023835,2]
[323120530,1713682261007,-1082.6,0.00023835,2]
[323120531,1713682261017,-500.0,0.00023835,2]
[323120532,1713682261026,-865.36,0.00023835,2]
[323120533,1713682261035,-585.82,0.00023835,2]
[323120534,1713682261044,-513.23,0.00023835,2]
[323120535,1713682261054,-920.24,0.00023835,2]
[323120536,1713682261062,-500.0,0.00023835,2]
[323120537,1713682261071,-500.0,0.00023835,2]
[323120538,1713682261081,-500.0,0.00023835,2]
[323120539,1713682261090,-626.07,0.00023835,2]
[323120540,1713682261099,-829.79,0.00023835,2]
[323120541,1713682261108,-500.0,0.00023835,2]
[323120542,1713682261117,-685.85,0.00023835,2]
[323120543,1713682261126,-3764.97,0.00023835,2]
[323120544,1713682261135,-924.74,0.00023835,2]
[323120545,1713682261144,-500.0,0.00023835,2]
[323120546,1713682261153,-500.0,0.00023835,2]
[323120547,1713682261162,-500.0,0.00023835,2]
[323120548,1713682261171,-3553.7,0.00023835,2]
[323120549,1713682261180,-500.0,0.00023835,2]
[323120550,1713682261190,-500.0,0.00023835,2]
[323120551,1713682261199,-3076.51,0.00023835,2]
[323120552,1713682261208,-2283.51,0.00023835,2]
[323120553,1713682261218,-500.0,0.00023835,2]
[323120554,1713682261227,-545.24,0.00023835,2]
[323120555,1713682261237,-500.0,0.00023835,2]
[323120556,1713682261248,-500.0,0.00023835,2]
[323120557,1713682261258,-605.36,0.00023835,2]
[323120558,1713682261267,-530.37257958,0.00023835,2]
[323120559,1713682261276,-513.18095095,0.00023835,2]
[323120560,1713682261286,-500.0,0.00023835,2]
[323120561,1713682261295,-500.0,0.00023835,2]
[323120562,1713682261304,-2074.47,0.00023835,2]
[323120563,1713682261313,-55793.57,0.00023835,2]
[323120564,1713682261323,-500.0,0.00023835,2]
[323120565,1713682261332,-571.08,0.00023835,2]
[323120566,1713682261342,-641.6,0.00023835,2]
[323120567,1713682261351,-500.0,0.00023835,2]
[323120568,1713682261361,-500.0,0.00023835,2]
[323120569,1713682261370,-2161.83,0.00023835,2]
[323120570,1713682261379,-500.0,0.00023835,2]
[323120571,1713682261388,-500.0,0.00023835,2]
[323120572,1713682261397,-542.23,0.00023835,2]
[323120573,1713682261407,-3661.29,0.00023835,2]
[323120574,1713682261417,-500.0,0.00023835,2]
[323120575,1713682261426,-650.2,0.00023835,2]
[323120576,1713682261435,-4628.55,0.00023835,2]
[323120577,1713682261445,-189.65821471,0.00023835,2]
[323120578,1713682261454,-500.0,0.00023835,2]
[323120579,1713682261464,-1011.96,0.00023835,2]
[323120580,1713682261473,-8470.02,0.00023835,2]
[323120581,1713682261482,-151.0,0.00023835,2]
[323120582,1713682261492,-500.0,0.00023835,2]
[323120583,1713682261501,-6566.31,0.00023835,2]
[323120584,1713682261510,-500.0,0.00023835,2]
[323120585,1713682261519,-1558.88,0.00023835,2]
[323120586,1713682261528,-1397.36,0.00023835,2]
[323120587,1713682261538,-500.0,0.00023835,2]
[323120588,1713682261548,-551.90751481,0.00023835,2]
[323120589,1713682261558,-626.80285602,0.00023835,2]
[323120590,1713682261567,-554.09,0.00023835,2]
[323120591,1713682261576,-1938.71,0.00023835,2]
[323120592,1713682261585,-237.4180498,0.00023836,2]
[323120593,1713682261594,-3640.7370459,0.000239,2]
[323120594,1713682261603,-1500.0,0.00024,2]
[323120595,1713682261612,-14066.96997073,0.00024,2]
[323120596,1713682261621,-2000.0,0.00024,2]
[323120597,1713682261630,-150.0,0.00024,10]
[323120598,1713682261639,-250.0,0.00024003,2]
[323120599,1713682261648,-151.0,0.000241,2]
[323120600,1713682261657,-500.0,0.00024109,2]
[323120601,1713682261666,-500.0,0.00024109,2]
[323120602,1713682261676,-500.0,0.00024109,2]
[323120603,1713682261685,-500.0,0.00024109,2]
[323120604,1713682261694,-500.0,0.00024109,2]
[323120605,1713682261703,-895.86,0.00024109,2]
[323120606,1713682261712,-500.0,0.00024109,2]
[323120607,1713682261721,-500.0,0.00024109,2]
[323120608,1713682261730,-500.0,0.00024109,2]
[323120609,1713682261741,-539.54,0.00024109,2]
[323120610,1713682261752,-500.0,0.00024109,2]
[323120611,1713682261761,-491.53234661,0.00024109,2]
[323120612,1713682261771,-552.4462024,0.00024109,2]
[323120613,1713682261780,-2897.85,0.00024109,2]
[323120614,1713682261788,-500.0,0.00024109,2]
[323120615,1713682261798,-668.25,0.00024109,2]
[323120616,1713682261807,-500.0,0.00024109,2]
[323120617,1713682261816,-926.17,0.00024109,2]
[323120618,1713682261826,-500.0,0.00024109,2]
[323120619,1713682261834,-600.82,0.00024109,2]
[323120620,1713682261843,-1032.11,0.00024109,2]
[323120621,1713682261853,-500.0,0.00024109,2]
[323120622,1713682261862,-1200.37,0.00024109,2]
[323120623,1713682261871,-751.54,0.00024109,2]
[323120624,1713682261880,-500.0,0.00024109,2]
[323120625,1713682261890,-500.0,0.00024109,2]
[323120626,1713682261899,-823.34,0.00024109,2]
[323120627,1713682261908,-500.0,0.00024109,2]
[323120628,1713682261917,-500.0,0.00024109,2]
[323120629,1713682261926,-500.0,0.00024109,2]
[323120630,1713682261935,-1463.78,0.00024109,2]
[323120631,1713682261944,-980.47,0.00024109,2]
[323120632,1713682261954,-1041.63,0.00024109,2]
[323120633,1713682261964,-1235.19,0.00024109,2]
[323120634,1713682261973,-550.81,0.00024109,2]
[323120635,1713682261982,-1709.09,0.00024109,2]
[323120636,1713682261992,-2893.04,0.00024109,2]
[323120637,1713682262001,-500.0,0.00024109,2]
[323120638,1713682262010,-2003.26,0.00024109,2]
[323120639,1713682262019,-500.0,0.00024109,2]
[323120640,1713682262029,-1858.5,0.00024109,2]
[323120641,1713682262038,-859.85,0.00024109,2]
[323120642,1713682262047,-500.0,0.00024109,2]
[323120643,1713682262056,-1129.46,0.00024109,2]
[323120644,1713682262065,-2335.39,0.00024109,2]
[323120645,1713682262075,-359.22100338,0.00024109,2]
[323120646,1713682262085,-500.0,0.00024109,2]
[323120647,1713682262094,-808.13,0.00024109,2]
[323120648,1713682262103,-847.92,0.00024109,2]
[323120649,1713682262112,-500.0,0.00024109,2]
[323120650,1713682262121,-2528.35,0.00024109,2]
[323120651,1713682262130,-1137.12,0.00024109,2]
[323120652,1713682262139,-500.0,0.00024109,2]
[323120653,1713682262149,-500.0,0.00024109,2]
[323120654,1713682262158,-500.0,0.00024109,2]
[323120655,1713682262167,-1173.14,0.00024109,2]
[323120656,1713682262176,-1992.64,0.00024109,2]
[323120657,1713682262186,-500.0,0.00024109,2]
[323120658,1713682262196,-5785.47,0.00024109,2]
[323120659,1713682262205,-500.0,0.00024109,2]
[323120660,1713682262214,-1195.65,0.00024109,2]
[323120661,1713682262223,-320.8781974,0.00024109,2]
[323120662,1713682262234,-1082.6,0.00024109,2]
[323120663,1713682262245,-500.0,0.00024109,2]
[323120664,1713682262254,-865.36,0.00024109,2]
[323120665,1713682262264,-585.82,0.00024109,2]
[323120666,1713682262273,-513.23,0.00024109,2]
[323120667,1713682262283,-920.24,0.00024109,2]
[323120668,1713682262292,-500.0,0.00024109,2]
[323120669,1713682262301,-500.0,0.00024109,2]
[323120670,1713682262310,-500.0,0.00024109,2]
[323120671,1713682262320,-626.07,0.00024109,2]
[323120672,1713682262329,-829.79,0.00024109,2]
[323120673,1713682262338,-500.0,0.00024109,2]
[323120674,1713682262347,-685.85,0.00024109,2]
[323120675,1713682262357,-3764.97,0.00024109,2]
[323120676,1713682262366,-924.74,0.00024109,2]
[323120677,1713682262374,-500.0,0.00024109,2]
[323120678,1713682262384,-500.0,0.00024109,2]
[323120679,1713682262393,-500.0,0.00024109,2]
[323120680,1713682262402,-3553.7,0.00024109,2]
[323120681,1713682262412,-500.0,0.00024109,2]
[323120682,1713682262422,-540.55284297,0.00024109,2]
[323120683,1713682262431,-3076.51,0.00024109,2]
[323120684,1713682262441,-2283.51,0.00024109,2]
[323120685,1713682262450,-500.0,0.00024109,2]
[323120686,1713682262460,-545.24,0.00024109,2]
[323120687,1713682262469,-500.0,0.00024109,2]
[323120688,1713682262478,-165.69425574,0.00024109,2]
[323120689,1713682262487,-605.36,0.00024109,2]
[323120690,1713682262498,-500.0,0.00024109,2]
[323120691,1713682262507,-168.18475819,0.00024109,2]
[323120692,1713682262517,-2074.47,0.00024109,2]
[323120693,1713682262526,-49745.38948734,0.00024109,2]
[323120694,1713682262668,-1703.69,0.00021917,2]
[323120695,1713682262678,-1703.69,0.00022191,2]
[323120696,1713682262687,-1703.69,0.00022465,2]
[323120697,1713682262697,-500.0,0.00023835,2]
[323120698,1713682262706,-1738.69301874,0.00024109,2]
[323120699,1713682262717,-4309.48749392,0.00024109,2]
[323120700,1713682262727,-500.0,0.00024109,2]
[323120701,1713682262736,-571.08,0.00024109,2]
[323120702,1713682262750,-641.6,0.00024109,2]
[323120703,1713682262759,-500.0,0.00024109,2]
[323120704,1713682262769,-500.0,0.00024109,2]
[323120705,1713682262778,-2161.83,0.00024109,2]
[323120706,1713682262788,-500.0,0.00024109,2]
[323120707,1713682262797,-295.31432644,0.00024109,2]
[323120708,1713682262807,-542.23,0.00024109,2]
[323120709,1713682262817,-3661.29,0.00024109,2]
[323120710,1713682262827,-500.0,0.00024109,2]
[323120711,1713682262836,-650.2,0.00024109,2]
[323120712,1713682262846,-4628.55,0.00024109,2]
[323120713,1713682262856,-500.0,0.00024109,2]
[323120714,1713682262865,-1011.96,0.00024109,2]
[323120715,1713682262874,-8470.02,0.00024109,2]
[323120716,1713682262884,-193.93901126,0.00024109,2]
[323120717,1713682262893,-500.0,0.00024109,2]
[323120718,1713682262902,-6566.31,0.00024109,2]
[323120719,1713682262910,-500.0,0.00024109,2]
[323120720,1713682262919,-1558.88,0.00024109,2]
[323120721,1713682262928,-1397.36,0.00024109,2]
[323120722,1713682262938,-500.0,0.00024109,2]
[323120723,1713682262947,-554.09,0.00024109,2]
[323120724,1713682262956,-1938.71,0.00024109,2]
[323120725,1713682262965,-500.0,0.00024109,2]
[323120726,1713682262976,-306.0,0.0002411,2]
[323120727,1713682262985,-160.0,0.00024144,5]
[323120728,1713682262997,-643.35518022,0.00024314,2]
[323120729,1713682263006,-500.0,0.00024383,2]
[323120730,1713682263015,-439.95142863,0.00024383,2]
[323120731,1713682263024,-500.0,0.00024383,2]
[323120732,1713682263032,-500.0,0.00024383,2]
[323120733,1713682263041,-500.0,0.00024383,2]
[323120734,1713682263050,-895.86,0.00024383,2]
[323120735,1713682263060,-500.0,0.00024383,2]
[323120736,1713682263069,-500.0,0.00024383,2]
[323120737,1713682263079,-500.0,0.00024383,2]
[323120738,1713682263088,-539.54,0.00024383,2]
[323120739,1713682263098,-500.0,0.00024383,2]
[323120740,1713682263107,-2897.85,0.00024383,2]
[323120741,1713682263116,-500.0,0.00024383,2]
[323120742,1713682263126,-668.25,0.00024383,2]
[323120743,1713682263135,-500.0,0.00024383,2]
[323120744,1713682263144,-926.17,0.00024383,2]
[323120745,1713682263153,-304.78716177,0.00024383,2]
[323120746,1713682263489,-500.0,0.00021917,2]
[323120747,1713682263500,-1703.69,0.00022739,2]
[323120748,1713682263510,-195.21283823,0.00024383,2]
[323120749,1713682263519,-600.82,0.00024383,2]
[323120750,1713682263531,-1032.11,0.00024383,2]
[323120751,1713682263540,-500.0,0.00024383,2]
[323120752,1713682263549,-1200.37,0.00024383,2]
[323120753,1713682263558,-751.54,0.00024383,2]
[323120754,1713682263568,-500.0,0.00024383,2]
[323120755,1713682263577,-500.0,0.00024383,2]
[323120756,1713682263586,-823.34,0.00024383,2]
[323120757,1713682263595,-500.0,0.00024383,2]
[323120758,1713682263605,-500.0,0.00024383,2]
[323120759,1713682263614,-500.0,0.00024383,2]
[323120760,1713682263623,-1463.78,0.00024383,2]
[323120761,1713682263632,-980.47,0.00024383,2]
[323120762,1713682263642,-1041.63,0.00024383,2]
[323120763,1713682263651,-1235.19,0.00024383,2]
[323120764,1713682263660,-550.81,0.00024383,2]
[323120765,1713682263670,-1709.09,0.00024383,2]
[323120766,1713682263680,-2893.04,0.00024383,2]
[323120767,1713682263689,-500.0,0.00024383,2]
[323120768,1713682263699,-2003.26,0.00024383,2]
[323120769,1713682263708,-500.0,0.00024383,2]
[323120770,1713682263717,-1858.5,0.00024383,2]
[323120771,1713682263726,-859.85,0.00024383,2]
[323120772,1713682263735,-500.0,0.00024383,2]
[323120773,1713682263747,-1129.46,0.00024383,2]
[323120774,1713682263756,-2335.39,0.00024383,2]
[323120775,1713682263766,-500.0,0.00024383,2]
[323120776,1713682263775,-808.13,0.00024383,2]
[323120777,1713682263785,-847.92,0.00024383,2]
[323120778,1713682263794,-319.75719493,0.00024383,2]
[323120779,1713682263803,-2528.35,0.00024383,2]
[323120780,1713682263813,-1137.12,0.00024383,2]
[323120781,1713682263823,-500.0,0.00024383,2]
[323120782,1713682263832,-500.0,0.00024383,2]
[323120783,1713682263841,-500.0,0.00024383,2]
[323120784,1713682263850,-1173.14,0.00024383,2]
[323120785,1713682263859,-1992.64,0.00024383,2]
[323120786,1713682263869,-500.0,0.00024383,2]
[323120787,1713682263878,-5785.47,0.00024383,2]
[323120788,1713682263890,-500.0,0.00024383,2]
[323120789,1713682263899,-1195.65,0.00024383,2]
[323120790,1713682263908,-1082.6,0.00024383,2]
[323120791,1713682263917,-75.63165844,0.00024383,2]
[323120792,1713682264109,-1703.69,0.00023013,2]
[323120793,1713682264119,-1552.82029246,0.00023287,2]
[323120794,1713682264644,150.0,0.00021,2]
[323120806,1713682478424,436.893045,0.00020221,2]
[323120807,1713682479461,3540.59693425,0.00021,2]
[323120808,1713682608220,20575.85206572,0.00021,2]
[323120809,1713682632324,451.93241924,0.00021,2]
[323120811,1713682652324,451.93241924,0.00021,2]
[323120812,1713682668332,451.93241924,0.00021,2]
[323120813,1713682687067,451.93241924,0.00021,2]
[323120814,1713682704439,451.93241924,0.00021,2]
[323120816,1713682727456,451.93241924,0.00021,2]
[323120817,1713682749501,451.93241924,0.00021,2]
[323120819,1713682762550,-526.14121076,0.00021183,2]
[323120820,1713682762723,-154.84515485,0.00021184,2]
[323120821,1713682762747,-154.84515485,0.00021184,2]
[323120822,1713682762772,-470.16847954,0.00021184,2]
[323120823,1713682777494,482.8771744,0.00021,2]
[323120824,1713682833679,150.0,0.00021,2]
[323120826,1713682916802,2341477.27308402,0.00025,30]
[323120827,1713683034894,218.446522,0.00020436,2]
[323121000,1713683437831,-247.12439728,0.00021115,2]
[323121003,1713683437841,-387.87560272,0.00021116,2]
[323121008,1713683437884,-639.755913,0.00021116,2]
[323121019,1713683437979,-283.59517356,0.00021116,2]
[323121021,1713683437989,-193.52697819,0.00021116,2]
[323121023,1713683437999,-468.2653797,0.00021116,2]
[323121025,1713683438009,-154.84515485,0.00021117,2]
[323121027,1713683438019,-1090.08472256,0.00021117,2]
[323121028,1713683438029,-354.6718789,0.00021117,2]
[323121029,1713683438038,-241.42272,0.00021117,2]
[323121030,1713683438047,-539.63707301,0.00021117,2]
[323121031,1713683438056,-965.02782104,0.00021118,2]
[323121032,1713683438066,-154.84515485,0.00021126,2]
[323121033,1713683438075,-300.0,0.00021126,2]
[323121034,1713683438085,-300.0,0.00021126,2]
[323121035,1713683438094,-2586.79174796,0.00021127,2]
[323121036,1713683438106,-2098.69136625,0.00021127,2]
[323121037,1713683438115,-580.57529986,0.00021208,2]
[323121038,1713683438125,-154.84515485,0.00021216,2]
[323121039,1713683438135,-259.4890615,0.00021216,2]
[323121040,1713683438145,-262.57486673,0.00021217,2]
[323121041,1713683438155,-72533.62668599,0.00021217,2]
[323121042,1713683438165,-3342.94822412,0.00021218,2]
[323121043,1713683438174,-883.42675349,0.00021219,2]
[323121044,1713683438183,-246.77708241,0.00021788,2]
[323121045,1713683438193,-246.77708238,0.00021795,2]
[323121046,1713683438203,-246.77708238,0.00021803,2]
[323121047,1713683438214,-246.77708238,0.0002181,2]
[323121048,1713683438226,-246.77708238,0.00021817,2]
[323121049,1713683438238,-2774.01551629,0.00021886,2]
[323121050,1713683438247,-59135.86264102,0.00021888,2]
[323121051,1713683438257,-783.87866091,0.00021891,2]
[323121052,1713683438267,-362.4137179,0.0002191,2]
[323121053,1713683438277,-241.30671673,0.0002191,2]
[323121054,1713683438286,-688.27982774,0.0002191,2]
[323121055,1713683438296,-210.00990646,0.0002191,2]
[323121056,1713683438305,-440.09151511,0.0002191,2]
[323121057,1713683438314,-333.56525219,0.0002191,2]
[323121058,1713683438324,-294.56448111,0.00021911,2]
[323121059,1713683438336,-167.47944015,0.00021913,2]
[323121060,1713683438347,-154.84515485,0.00021913,2]
[323121061,1713683438357,-602.61216035,0.00021913,2]
[323121062,1713683438367,-155.0025218,0.00021913,2]
[323121063,1713683438377,-156.84586358,0.00021913,2]
[323121064,1713683438386,-1086.80536715,0.00021913,2]
[323121065,1713683438396,-272.32070711,0.00021913,2]
[323121066,1713683438406,-672.6914059,0.00021913,2]
[323121067,1713683438417,-170.54852013,0.00021913,2]
[323121068,1713683438426,-155.37410342,0.00021913,2]
[323121069,1713683438437,-6518.58443311,0.00021913,2]
[323121070,1713683438448,-277.22171252,0.00021913,2]
[323121071,1713683438461,-424.18807571,0.00021913,2]
[323121072,1713683438471,-625.05752544,0.00021913,2]
[323121073,1713683438481,-227.03385285,0.00021913,2]
[323121074,1713683438491,-206.7669306,0.00021913,2]
[323121075,1713683438501,-549.41724312,0.00021913,2]